bitfinex/quotes_BTCUSD_20220212
["timestamp","ask_amount","ask_price","bid_price","bid_amount"]
[1644703368167,1.96711168,41922.0,41919.0,0.00039575]
[1644703368168,2.12711168,41922.0,41919.0,0.00039575]
[1644703368363,0.332105,41920.0,41919.0,0.00039575]
[1644703368563,0.379805,41920.0,41919.0,0.00039575]
[1644703368765,0.529805,41920.0,41919.0,0.00039575]
[1644703368964,1.774805,41920.0,41919.0,0.00039575]
[1644703369164,1.774805,41920.0,41904.0,0.07862441]
[1644703369165,0.08061081,41919.0,41904.0,0.07862441]
[1644703369366,0.08061081,41919.0,41899.0,0.301]
[1644703369367,0.332141,41915.0,41899.0,0.301]
[1644703369610,0.332141,41913.0,41911.0,0.0015293]
[1644703369910,0.41741148,41912.0,41911.0,0.0015293]
[1644703370109,0.74955248,41912.0,41911.0,0.0015293]
[1644703370309,0.74955248,41912.0,41902.0,0.005]
[1644703370510,0.08855179,41906.0,41902.0,0.005]
[1644703370715,0.08855179,41906.0,41903.0,0.00152942]
[1644703370716,0.56687371,41905.0,41903.0,0.00152942]
[1644703371313,0.128942,41903.0,41893.0,0.46186291]
[1644703371510,0.2349423,41904.0,41893.0,0.005]
[1644703371713,0.22862694,41898.0,41892.0,0.00303091]
[1644703371912,0.22862694,41898.0,41894.0,0.06883142]
[1644703372112,1.464542,41919.0,41894.0,0.06383142]
[1644703372314,0.3,41912.0,41894.0,0.06383142]
[1644703372512,0.632141,41907.0,41894.0,0.06383142]
[1644703372712,0.332141,41906.0,41894.0,0.06383142]
[1644703372912,0.332141,41905.0,41894.0,0.06383142]
[1644703373112,0.332141,41903.0,41898.0,0.00016208]
[1644703373559,0.332141,41903.0,41901.0,0.08726135]
[1644703373560,0.322141,41903.0,41901.0,0.08726135]
[1644703374162,0.31940375,41903.0,41901.0,0.08626135]
[1644703374363,0.31940375,41903.0,41900.0,0.00038574]
[1644703375264,0.00236668,41898.0,41897.0,0.22895222]
[1644703376563,0.00236668,41898.0,41897.0,0.22795222]
[1644703378213,0.00236668,41898.0,41897.0,0.23749922]
[1644703378413,0.00236668,41898.0,41897.0,0.009547]
[1644703378615,0.33459768,41898.0,41896.0,0.08096935]
[1644703379015,0.00236668,41898.0,41896.0,0.08096935]
[1644703379412,0.33459768,41898.0,41897.0,0.26536249]
[1644703379614,0.00236668,41898.0,41897.0,0.26036249]
[1644703380014,0.00236668,41898.0,41897.0,0.24536249]
[1644703380215,0.00222691,41898.0,41897.0,0.24591142]
[1644703380413,0.33445791,41898.0,41897.0,0.00054893]
[1644703380614,0.00222691,41898.0,41897.0,0.00054893]
[1644703380865,0.33445791,41898.0,41897.0,0.00054893]
[1644703381463,0.53563685,41898.0,41897.0,0.00054893]
[1644703382362,0.33445791,41898.0,41897.0,0.00054893]
[1644703383164,0.00222691,41898.0,41896.0,0.08051828]
[1644703383364,0.332231,41897.0,41896.0,0.08051828]
[1644703383564,0.00222691,41898.0,41896.0,0.08051828]
[1644703384163,0.00572691,41898.0,41896.0,0.08051828]
[1644703385214,0.00572691,41898.0,41893.0,0.12236837]
[1644703385215,0.00817298,41898.0,41893.0,0.12236837]
[1644703385418,0.00817298,41898.0,41896.0,0.05]
[1644703385615,0.00817298,41898.0,41897.0,0.0477]
[1644703385616,0.00573298,41898.0,41897.0,0.0477]
[1644703386115,3.298e-05,41898.0,41897.0,0.057246]
[1644703386517,3.298e-05,41898.0,41897.0,0.0477]
[1644703387918,0.21331863,41921.0,41900.0,0.119302]
[1644703388119,0.439165,41944.0,41917.0,0.05]
[1644703388120,1.35067173,41941.0,41917.0,0.05]
[1644703388383,0.20564258,41949.0,41940.0,0.26349703]
[1644703388574,0.01,41949.0,41941.0,0.332125]
[1644703388876,0.01,41949.0,41943.0,0.332125]
[1644703389073,0.01,41949.0,41944.0,0.0477]
[1644703389274,0.01,41949.0,41945.0,0.332125]
[1644703389475,0.01,41949.0,41946.0,0.0477]
[1644703389774,0.09701393,41949.0,41948.0,0.5]
[1644703389973,0.21337173,41949.0,41948.0,0.5]
[1644703390772,0.09723873,41949.0,41948.0,1.0]
[1644703390976,0.09701393,41949.0,41948.0,1.0]
[1644703391576,0.21314693,41949.0,41948.0,1.0]
[1644703391778,0.09701393,41949.0,41948.0,1.0]
[1644703392415,0.21314693,41949.0,41948.0,1.0]
[1644703392615,0.09701393,41949.0,41948.0,1.0]
[1644703393217,0.09701393,41949.0,41948.0,0.5]
[1644703393417,0.21314693,41949.0,41948.0,0.5]
[1644703393817,0.01,41949.0,41948.0,0.5]
[1644703394020,0.01,41949.0,41936.0,0.083445]
[1644703394029,0.01,41949.0,41937.0,0.3]
[1644703394218,0.01,41949.0,41937.0,0.0477]
[1644703394518,0.01,41949.0,41941.0,0.041721]
[1644703394717,0.00022638,41945.0,41941.0,0.041721]
[1644703394917,0.00013632,41945.0,41941.0,0.041721]
[1644703395216,0.00013632,41945.0,41942.0,0.059601]
[1644703395617,0.08800304,41947.0,41942.0,0.059601]
[1644703395871,0.01319829,41949.0,41942.0,0.059601]
[1644703396063,0.00819829,41949.0,41942.0,0.059601]
[1644703396767,0.00819829,41949.0,41937.0,0.166902]
[1644703396768,0.332125,41948.0,41937.0,0.166902]
[1644703396964,0.00819829,41949.0,41937.0,0.166902]
[1644703397165,0.00819829,41949.0,41940.0,0.041721]
[1644703397766,0.09218746,41949.0,41940.0,0.041721]
[1644703397964,0.09218746,41949.0,41941.0,0.059602]
[1644703398366,0.00041632,41947.0,41941.0,0.059602]
[1644703398865,0.00041632,41947.0,41941.0,0.109602]
[1644703399072,0.00041632,41947.0,41941.0,0.059602]
[1644703399267,0.00819829,41949.0,41939.0,0.083436]
[1644703399712,0.00041632,41947.0,41941.0,0.059601]
[1644703399913,0.08985034,41947.0,41941.0,0.059601]
[1644703400312,0.00819829,41949.0,41941.0,0.059601]
[1644703400514,0.08,41948.0,41943.0,0.00250981]
[1644703400712,0.08,41948.0,41943.0,0.04422781]
[1644703401918,0.08,41948.0,41945.0,0.332028]
[1644703402116,0.08,41948.0,41946.0,0.40537813]
[1644703402313,0.005,41949.0,41946.0,0.1477]
[1644703403117,0.00022445,41950.0,41947.0,0.6737282]
[1644703403374,0.00022445,41950.0,41949.0,0.332028]
[1644703403566,0.27815802,41969.0,41951.0,0.119162]
[1644703403567,0.22991953,41969.0,41951.0,0.119162]
[1644703403767,0.00020848,41967.0,41952.0,0.0477]
[1644703403967,0.00020848,41971.0,41952.0,0.0477]
[1644703404167,0.20402763,41965.0,41952.0,0.0977]
[1644703404373,0.20402763,41965.0,41955.0,0.059581]
[1644703404569,0.332028,41964.0,41955.0,0.0477]
[1644703405172,0.332028,41962.0,41955.0,0.0477]
[1644703405571,0.38758835,41956.0,41955.0,0.0477]
[1644703407417,0.28654535,41956.0,41950.0,0.0477]
[1644703407816,0.21291311,41956.0,41950.0,0.0477]
[1644703408016,0.21291311,41956.0,41951.0,0.00041705]
[1644703408617,0.19451219,41953.0,41951.0,0.00041705]
[1644703408819,0.44697188,41952.0,41951.0,0.00041705]
[1644703409018,0.06494388,41952.0,41946.0,0.00253727]
[1644703409217,0.06494388,41952.0,41950.0,0.00041706]
[1644703409218,0.332028,41951.0,41950.0,0.00041706]
[1644703410019,0.06494388,41952.0,41950.0,0.00041706]
[1644703410218,0.06494388,41952.0,41942.0,0.04172]
[1644703410518,0.06494388,41952.0,41948.0,0.00041706]
[1644703410719,0.21581407,41956.0,41948.0,0.00041706]
[1644703410997,0.332028,41955.0,41948.0,0.00041706]
[1644703411392,0.41540249,41956.0,41946.0,0.041716]
[1644703411590,0.332028,41955.0,41949.0,0.00041706]
[1644703411792,0.332028,41955.0,41946.0,0.01713306]
[1644703411793,0.101043,41955.0,41946.0,0.01713306]
[1644703411991,0.41540249,41956.0,41946.0,0.01713306]
[1644703412194,0.41540249,41956.0,41942.0,0.119187]
[1644703412391,0.06855937,41954.0,41942.0,0.119187]
[1644703412592,0.06855937,41954.0,41942.0,0.219187]
[1644703412994,0.06855937,41954.0,41942.0,0.119187]
[1644703412995,0.05,41951.0,41942.0,0.119187]
[1644703413394,0.24878,41943.0,41942.0,0.119187]
[1644703413593,0.24878,41943.0,41942.0,0.11322497]
[1644703413793,0.24878,41943.0,41942.0,0.44525297]
[1644703413994,0.24878,41943.0,41942.0,0.332028]
[1644703414193,0.24878,41943.0,41942.0,0.482028]
[1644703414394,0.00290096,41956.0,41942.0,0.2]
[1644703414624,0.101043,41955.0,41942.0,0.2]
[1644703414826,0.332028,41954.0,41942.0,0.2]
[1644703415024,0.00290096,41956.0,41942.0,0.15]
[1644703415025,0.05,41951.0,41942.0,0.15]
[1644703415225,0.07340038,41948.0,41938.0,0.133439]
[1644703415434,0.07340038,41948.0,41947.0,0.00306673]
[1644703416627,0.44280931,41949.0,41947.0,0.00306673]
[1644703416828,0.332028,41948.0,41947.0,0.00306673]
[1644703417628,0.44280931,41949.0,41947.0,0.00306673]
[1644703417928,0.52174978,41949.0,41947.0,0.00306673]
[1644703418567,0.44280931,41949.0,41947.0,0.00306673]
[1644703418767,0.19528384,41949.0,41947.0,0.00306673]
[1644703419567,0.17568109,41949.0,41947.0,0.00306673]
[1644703419767,0.00304636,41948.0,41947.0,0.00306673]
[1644703419970,0.11922745,41949.0,41947.0,0.00306673]
[1644703429373,0.332028,41948.0,41947.0,0.00306673]
[1644703430209,0.11922745,41949.0,41947.0,0.00306673]
[1644703430413,0.332028,41948.0,41947.0,0.00463096]
[1644703430814,0.16922745,41949.0,41947.0,0.00463096]
[1644703431013,0.332028,41948.0,41947.0,0.00463096]
[1644703431812,0.25958401,41948.0,41947.0,0.00463096]
[1644703432015,0.11922745,41949.0,41947.0,0.00463096]
[1644703432414,0.16922745,41949.0,41947.0,0.00463096]
[1644703432814,0.101043,41948.0,41947.0,0.00463096]
[1644703433018,0.57841725,41948.0,41947.0,0.00463096]
[1644703434662,0.24638925,41948.0,41947.0,0.00463096]
[1644703434864,0.55736766,41962.0,41947.0,0.00463096]
[1644703434865,1.05334732,41961.0,41947.0,0.00463096]
[1644703435066,0.2341,41961.0,41949.0,0.30366738]
[1644703435265,0.55736766,41962.0,41952.0,0.30366738]
[1644703435266,0.5557,41962.0,41952.0,0.30366738]
[1644703435766,0.00041699,41957.0,41953.0,0.332028]
[1644703435963,0.00041699,41957.0,41952.0,0.30366738]
[1644703436162,0.00041699,41957.0,41951.0,0.30366738]
[1644703436363,0.00041699,41957.0,41952.0,0.30366738]
[1644703436564,0.2062284,41959.0,41952.0,0.30366738]
[1644703436862,0.05,41957.0,41952.0,0.30366738]
[1644703437113,0.25593391,41956.0,41952.0,0.30366738]
[1644703437313,0.07486612,41954.0,41951.0,0.30366738]
[1644703437514,0.07486612,41954.0,41949.0,0.0534]
[1644703437714,0.06986612,41954.0,41949.0,0.0534]
[1644703437915,0.06986612,41954.0,41947.0,0.30871543]
[1644703438214,0.24576438,41948.0,41947.0,0.30871543]
[1644703438815,0.11986612,41954.0,41947.0,0.00504805]
[1644703439014,0.11986612,41954.0,41948.0,0.30408638]
[1644703439415,0.11986612,41954.0,41947.0,0.30871734]
[1644703439715,0.21897412,41949.0,41947.0,0.30871734]
[1644703439913,0.21897412,41949.0,41947.0,0.30408638]
[1644703440715,0.21897412,41949.0,41946.0,0.00041707]
[1644703441370,0.21897412,41949.0,41945.0,0.30408638]
[1644703441569,0.21897412,41949.0,41945.0,0.30450346]
[1644703442167,0.24988806,41948.0,41945.0,0.30450346]
[1644703442368,0.24988806,41948.0,41943.0,0.35437731]
[1644703442571,0.52840834,41949.0,41942.0,0.36391331]
[1644703442572,0.05,41945.0,41942.0,0.36391331]
[1644703442771,0.101043,41944.0,41942.0,0.009536]
[1644703442973,0.08644224,41944.0,41942.0,0.009536]
[1644703443370,0.06378242,41943.0,41942.0,0.009536]
[1644703443571,0.39581042,41943.0,41942.0,0.009536]
[1644703443770,0.3,41947.0,41942.0,0.009536]
[1644703443972,0.3,41947.0,41942.0,0.36391331]
[1644703444171,0.332042,41946.0,41943.0,0.46265841]
[1644703444374,0.332042,41946.0,41942.0,0.009536]
[1644703445018,0.086426,41944.0,41942.0,0.009536]
[1644703445216,0.2467173,41943.0,41942.0,0.009536]
[1644703445416,0.332042,41943.0,41942.0,0.009536]
[1644703446016,0.319342,41943.0,41942.0,0.009536]
[1644703446418,0.319342,41943.0,41940.0,0.35479441]
[1644703446718,0.5932568,41942.0,41940.0,0.0004171]
[1644703446920,0.2612098,41942.0,41940.0,0.0004171]
[1644703447319,0.2612098,41942.0,41937.0,0.35437731]
[1644703447518,0.2612098,41942.0,41939.0,0.00041711]
[1644703447718,0.23728501,41941.0,41939.0,0.35479442]
[1644703448118,0.23728501,41941.0,41939.0,0.46308859]
[1644703448373,0.23728501,41941.0,41939.0,0.35479442]
[1644703448568,0.23728501,41941.0,41939.0,0.35437731]
[1644703448770,0.23728501,41941.0,41939.0,0.009538]
[1644703449167,0.42524956,41941.0,41938.0,0.00041711]
[1644703449568,0.05,41939.0,41938.0,0.00041711]
[1644703449869,0.05,41939.0,41937.0,0.00995511]
[1644703449870,0.332047,41938.0,41937.0,0.00995511]
[1644703451066,0.332047,41938.0,41937.0,0.009538]
[1644703451470,0.332047,41938.0,41937.0,0.31369349]
[1644703452517,0.332047,41938.0,41937.0,0.32323149]
[1644703453118,0.332047,41938.0,41937.0,0.31369349]
[1644703453721,0.332047,41938.0,41937.0,0.009538]
[1644703454721,0.332047,41938.0,41935.0,0.30457196]
[1644703455219,0.332047,41938.0,41937.0,0.0034587]
[1644703455891,0.332047,41943.0,41937.0,0.0034587]
[1644703456083,0.327047,41943.0,41938.0,0.30408063]
[1644703456785,0.05,41944.0,41938.0,0.30408063]
[1644703456786,0.07372,41940.0,41938.0,0.30408063]
[1644703456982,0.07372,41940.0,41937.0,0.30753933]
[1644703457183,0.07372,41940.0,41938.0,0.00038072]
[1644703457184,0.06102,41940.0,41938.0,0.00038072]
[1644703457783,0.05,41939.0,41938.0,0.00038072]
[1644703457983,0.327045,41939.0,41938.0,0.00038072]
[1644703458184,0.061019,41938.0,41937.0,0.30753933]
[1644703459184,0.061019,41938.0,41937.0,0.25687058]
[1644703459187,0.377045,41938.0,41937.0,0.25687058]
[1644703459387,0.377045,41938.0,41937.0,0.0034587]
[1644703460125,0.377045,41938.0,41935.0,0.30408063]
[1644703460926,0.377045,41938.0,41936.0,0.25341275]
[1644703461525,0.377045,41938.0,41935.0,0.25341275]
[1644703461726,0.377045,41938.0,41936.0,0.25341275]
[1644703462225,0.377045,41938.0,41935.0,0.00038662]
[1644703463026,0.377045,41938.0,41934.0,0.00290132]
[1644703463226,0.111019,41936.0,41934.0,0.00328794]
[1644703463471,0.17980963,41935.0,41934.0,0.00328794]
[1644703463672,0.18327369,41935.0,41934.0,0.00328794]
[1644703464073,0.18327369,41935.0,41930.0,0.009539]
[1644703464074,0.00591092,41933.0,41930.0,0.009539]
[1644703464371,0.34973874,41931.0,41930.0,0.019081]
[1644703464575,0.66524974,41931.0,41930.0,0.019081]
[1644703464974,0.66524974,41931.0,41930.0,0.004539]
[1644703465375,0.66524974,41931.0,41924.0,0.30408063]
[1644703465376,2.02370495,41931.0,41924.0,0.30408063]
[1644703465578,0.05,41925.0,41923.0,0.30408063]
[1644703465775,0.315511,41924.0,41923.0,0.30408063]
[1644703466175,0.315511,41924.0,41921.0,0.31408063]
[1644703466377,0.54028041,41924.0,41921.0,0.31408063]
[1644703466576,0.05,41922.0,41921.0,0.31408063]
[1644703466777,0.111019,41922.0,41921.0,0.31408063]
[1644703467231,0.23021389,41924.0,41921.0,0.31400312]
[1644703467428,0.332086,41923.0,41921.0,0.31400312]
[1644703467630,0.044444,41922.0,41921.0,0.31400312]
[1644703467830,0.27094236,41931.0,41921.0,0.31400312]
[1644703468031,0.332086,41930.0,41922.0,0.30398419]
[1644703468230,0.332086,41930.0,41921.0,0.32352619]
[1644703468629,0.332086,41930.0,41921.0,0.31398419]
[1644703468830,0.19460158,41929.0,41921.0,0.31398419]
[1644703469030,0.04988848,41928.0,41921.0,0.31398419]
[1644703469231,0.04988848,41928.0,41923.0,0.00041719]
[1644703470883,0.33753048,41924.0,41923.0,0.00041719]
[1644703471470,0.33753048,41924.0,41921.0,0.31398419]
[1644703471671,0.2226891,41922.0,41921.0,0.31440139]
[1644703471872,0.2671331,41922.0,41921.0,0.31440139]
[1644703472073,0.044444,41922.0,41921.0,0.31440139]
[1644703472272,0.044444,41922.0,41921.0,0.0104172]
[1644703472672,0.044444,41922.0,41921.0,0.01]
[1644703473273,0.23195543,41926.0,41921.0,0.31398419]
[1644703473473,0.044444,41925.0,41921.0,0.31398419]
[1644703474174,0.044444,41925.0,41921.0,0.31440091]
[1644703474374,0.044444,41925.0,41921.0,0.01041672]
[1644703474919,0.044444,41925.0,41921.0,0.01]
[1644703475319,0.00321093,41922.0,41921.0,0.01]
[1644703475724,0.00544448,41935.0,41921.0,0.01]
[1644703475929,0.044444,41932.0,41923.0,0.30398419]
[1644703476122,0.40758441,41938.0,41923.0,0.30398419]
[1644703476123,0.332086,41931.0,41923.0,0.30398419]
[1644703476322,0.034437,41930.0,41925.0,0.00041656]
[1644703477422,0.034437,41930.0,41923.0,0.30398419]
[1644703477624,0.33213,41932.0,41925.0,0.00041655]
[1644703478022,0.31713,41932.0,41925.0,0.00041655]
[1644703478670,0.31713,41932.0,41923.0,0.30398419]
[1644703478873,0.31713,41932.0,41926.0,0.00041655]
[1644703479480,0.332121,41931.0,41926.0,0.00041655]
[1644703479672,0.00591092,41933.0,41926.0,0.30440074]
[1644703479874,0.00591092,41933.0,41927.0,0.35168419]
[1644703480084,0.00544448,41951.0,41933.0,0.00190166]
[1644703480282,0.00041639,41942.0,41941.0,0.08636]
[1644703480475,0.00041639,41942.0,41941.0,0.418481]
[1644703480873,0.00041639,41942.0,41941.0,0.468481]
[1644703481071,0.00020848,41957.0,41941.0,0.618481]
[1644703481273,0.00022627,41944.0,41942.0,0.6359326]
[1644703481771,1.75497236,41958.0,41942.0,0.4038116]
[1644703481972,0.00020909,41957.0,41942.0,0.4038116]
[1644703482442,0.07464176,41956.0,41943.0,0.3634086]
[1644703482643,0.2005741,41952.0,41943.0,0.109597]
[1644703482846,0.2005741,41952.0,41943.0,0.259597]
[1644703483042,0.2005741,41952.0,41944.0,0.332121]
[1644703483242,0.2005741,41952.0,41943.0,0.259597]
[1644703483442,0.00020909,41957.0,41943.0,0.259597]
[1644703483644,0.00020909,41957.0,41943.0,0.269133]
[1644703483944,0.00020909,41957.0,41943.0,0.159597]
[1644703484143,0.00020909,41957.0,41944.0,0.32685244]
[1644703484345,0.00020909,41957.0,41946.0,0.07555368]
[1644703484543,0.00020909,41957.0,41947.0,0.0477]
[1644703484945,0.00041849,41954.0,41947.0,0.0477]
[1644703485973,0.00020909,41956.0,41947.0,0.0477]
[1644703486176,0.73352557,41958.0,41947.0,0.149011]
[1644703486375,0.73352557,41958.0,41947.0,0.249011]
[1644703486773,0.00152972,41959.0,41947.0,0.249011]
[1644703486973,0.23657094,41960.0,41947.0,0.249011]
[1644703487173,0.52733314,41964.0,41947.0,0.249011]
[1644703487375,0.52733314,41964.0,41947.0,0.43623927]
[1644703487673,0.52733314,41964.0,41947.0,0.268083]
[1644703487876,0.00544448,41957.0,41947.0,0.349011]
[1644703488276,0.20895573,41959.0,41947.0,0.349011]
[1644703488475,0.52733314,41964.0,41947.0,0.349011]
[1644703488875,0.52733314,41964.0,41947.0,0.249011]
[1644703489175,0.52733314,41964.0,41947.0,0.349011]
[1644703489375,0.00544448,41963.0,41947.0,0.349011]
[1644703489620,0.25161548,41957.0,41947.0,0.349011]
[1644703490323,0.25161548,41957.0,41949.0,0.00311683]
[1644703490723,0.25667473,41964.0,41947.0,0.34212783]
[1644703491026,0.25667473,41964.0,41949.0,0.332121]
[1644703491027,0.00041848,41955.0,41949.0,0.332121]
[1644703491252,0.00041848,41955.0,41950.0,0.0477]
[1644703491824,0.26622278,41960.0,41950.0,0.0477]
[1644703492225,0.00022578,41955.0,41950.0,0.0477]
[1644703493027,0.00544448,41955.0,41950.0,0.0477]
[1644703493368,0.00567026,41955.0,41950.0,0.0477]
[1644703493768,0.00022578,41955.0,41950.0,0.0477]
[1644703493970,0.00022578,41955.0,41951.0,0.332121]
[1644703494168,0.00022578,41955.0,41950.0,0.0477]
[1644703494368,0.00544448,41958.0,41950.0,0.0477]
[1644703494568,0.00022578,41955.0,41950.0,0.0477]
[1644703495269,0.00022578,41955.0,41950.0,0.057235]
[1644703495468,0.00120785,41955.0,41951.0,0.332121]
[1644703495672,0.00120785,41955.0,41950.0,0.057235]
[1644703495673,0.00162891,41955.0,41950.0,0.057235]
[1644703496068,0.00162891,41955.0,41950.0,0.0477]
[1644703496669,0.00120785,41955.0,41950.0,0.0477]
[1644703497118,0.00162891,41955.0,41951.0,0.332121]
[1644703497519,0.00162891,41955.0,41952.0,0.332121]
[1644703497718,0.00162891,41955.0,41951.0,0.332121]
[1644703498018,0.00120785,41955.0,41951.0,0.382121]
[1644703498520,0.00141754,41955.0,41951.0,0.382121]
[1644703498921,0.00141754,41955.0,41952.0,0.332121]
[1644703499121,0.72778761,41965.0,41952.0,0.432121]
[1644703499321,0.5608,41966.0,41953.0,0.0977]
[1644703499322,0.00042106,41955.0,41953.0,0.0977]
[1644703499521,0.00168384,41966.0,41954.0,0.68353229]
[1644703499721,0.00168384,41966.0,41955.0,0.0477]
[1644703499921,0.00168384,41966.0,41956.0,0.332121]
[1644703500124,0.00168384,41966.0,41959.0,0.059577]
[1644703500322,0.20633439,41972.0,41960.0,0.0477]
[1644703500624,0.76597229,41973.0,41962.0,0.041702]
[1644703501272,0.332121,41972.0,41962.0,0.041702]
[1644703501473,0.26345329,41971.0,41960.0,0.0477]
[1644703501671,0.019403,41970.0,41960.0,0.0477]
[1644703501870,0.332121,41969.0,41960.0,0.0477]
[1644703502271,0.2181932,41961.0,41960.0,0.0477]
[1644703502675,0.2181932,41961.0,41954.0,0.0477]
[1644703502676,0.2375962,41961.0,41954.0,0.0477]
[1644703502874,0.1431,41959.0,41957.0,0.009535]
[1644703503276,0.40801941,41958.0,41951.0,0.00042114]
[1644703503674,0.019403,41956.0,41951.0,0.00042114]
[1644703503874,0.019403,41956.0,41947.0,0.05]
[1644703504073,0.067103,41956.0,41951.0,0.00042111]
[1644703505121,0.067103,41956.0,41944.0,0.04]
[1644703505323,0.06609604,41949.0,41944.0,0.04]
[1644703505523,0.58716999,41948.0,41944.0,0.04]
[1644703505922,0.19475149,41947.0,41944.0,0.04]
[1644703506823,0.19475149,41947.0,41944.0,0.049538]
[1644703507223,0.19475149,41947.0,41944.0,0.04]
[1644703507624,0.332121,41948.0,41944.0,0.04]
[1644703508379,0.06609604,41949.0,41944.0,0.04]
[1644703508574,0.25480918,41947.0,41944.0,0.04]
[1644703508776,0.332121,41946.0,41944.0,0.04]
[1644703508973,0.332121,41946.0,41944.0,0.04042064]
[1644703509175,0.23540618,41947.0,41944.0,0.04042064]
[1644703509774,0.23540618,41947.0,41944.0,0.01542064]
[1644703509973,0.06609604,41949.0,41944.0,0.015]
[1644703510174,0.00117468,41946.0,41944.0,0.015]
[1644703512624,0.00117468,41946.0,41945.0,0.332121]
[1644703512823,0.00117468,41946.0,41944.0,0.015]
[1644703513423,0.00117468,41946.0,41945.0,0.332121]
[1644703513827,0.00117468,41946.0,41945.0,0.482121]
[1644703514028,0.00117468,41946.0,41945.0,0.2]
[1644703514227,0.00117468,41946.0,41945.0,0.532121]
[1644703514629,0.00117468,41946.0,41944.0,0.015]
[1644703515029,0.26233955,41954.0,41945.0,0.00248517]
[1644703516274,0.00117334,41954.0,41945.0,0.00248517]
[1644703516475,0.37511322,41955.0,41945.0,0.00248517]
[1644703516877,0.28752529,41955.0,41945.0,0.00248517]
[1644703517278,0.28752529,41955.0,41945.0,0.05248517]
[1644703517479,0.28252529,41955.0,41945.0,0.05248517]
[1644703517979,0.00022338,41957.0,41945.0,0.05248517]
[1644703518179,0.00043309,41957.0,41945.0,0.06202117]
[1644703518380,0.00020971,41958.0,41948.0,0.059592]
[1644703518580,0.0004331,41957.0,41950.0,0.332121]
[1644703518779,0.0004331,41957.0,41954.0,0.25776962]
[1644703518780,0.00022339,41957.0,41954.0,0.25776962]
[1644703518981,0.00022339,41957.0,41955.0,0.379821]
[1644703519182,0.00089332,41968.0,41956.0,0.08101433]
[1644703519183,0.0745831,41959.0,41956.0,0.08101433]
[1644703519381,0.0745831,41959.0,41957.0,0.332121]
[1644703519623,0.0745831,41959.0,41957.0,0.429821]
[1644703519822,0.0745831,41959.0,41958.0,0.332121]
[1644703520024,0.0745831,41959.0,41958.0,0.379821]
[1644703520223,0.0745831,41959.0,41958.0,0.529821]
[1644703521226,0.0745831,41959.0,41958.0,0.379821]
[1644703522023,0.0745831,41959.0,41958.0,0.009533]
[1644703522224,0.0745831,41959.0,41958.0,0.332121]
[1644703522822,0.0695831,41959.0,41958.0,0.332121]
[1644703524071,0.0568831,41959.0,41958.0,0.482121]
[1644703524274,0.0568831,41959.0,41958.0,0.532121]
[1644703525376,0.0568831,41959.0,41958.0,0.53460536]
[1644703525574,0.0568831,41959.0,41958.0,0.58800536]
[1644703525971,0.0568831,41959.0,41958.0,0.59753836]
[1644703526374,0.0899547,41974.0,41961.0,0.059575]
[1644703526574,0.0899547,41974.0,41962.0,0.095102]
[1644703526776,0.0899547,41974.0,41962.0,0.1034]
[1644703526974,0.2569064,41971.0,41962.0,0.1034]
[1644703527420,0.2569064,41971.0,41963.0,0.332121]
[1644703527621,0.2519064,41971.0,41964.0,0.332121]
[1644703527822,0.2519064,41971.0,41962.0,0.1034]
[1644703528125,0.2519064,41971.0,41963.0,0.332121]
[1644703528421,0.2519064,41971.0,41962.0,0.1034]
[1644703528623,0.07435124,41966.0,41962.0,0.1034]
[1644703528822,0.07435124,41966.0,41962.0,0.0534]
[1644703529223,0.24522853,41963.0,41958.0,0.00248436]
[1644703529425,0.24522853,41963.0,41962.0,0.00042306]
[1644703529923,0.00042297,41971.0,41962.0,0.00042306]
[1644703530126,0.00042297,41971.0,41963.0,0.0025032]
[1644703530324,0.2422,41973.0,41956.0,0.0534]
[1644703530527,0.00042298,41971.0,41964.0,0.00042305]
[1644703530724,0.08350901,41969.0,41964.0,0.00042305]
[1644703530994,0.21797097,41966.0,41964.0,0.00042305]
[1644703531592,0.21797097,41966.0,41955.0,0.54550594]
[1644703531795,0.21797097,41966.0,41963.0,0.00042305]
[1644703532791,0.21797097,41966.0,41956.0,0.40379794]
[1644703533094,0.21797097,41966.0,41962.0,0.00042306]
[1644703533793,0.21797097,41966.0,41958.0,0.05958]
[1644703533995,0.21797097,41966.0,41959.0,0.332121]
[1644703534196,0.21797097,41966.0,41962.0,0.00042306]
[1644703535024,0.21797097,41966.0,41964.0,0.00250313]
[1644703536923,0.15902097,41966.0,41964.0,0.00250313]
[1644703537728,0.15902097,41966.0,41964.0,0.01203613]
[1644703538126,0.15902097,41966.0,41964.0,0.00250313]
[1644703539679,0.00021078,41967.0,41964.0,0.00250313]
[1644703539876,0.00021078,41970.0,41964.0,0.00250313]
[1644703540076,0.29665402,41971.0,41964.0,0.00250313]
[1644703540077,0.2968648,41971.0,41964.0,0.00250313]
[1644703540280,0.0004225,41968.0,41960.0,0.00042258]
[1644703540477,0.0004225,41968.0,41961.0,0.332121]
[1644703540679,0.0004225,41968.0,41962.0,0.05]
[1644703540882,0.0004225,41968.0,41963.0,0.391694]
[1644703541180,0.00021078,41968.0,41965.0,0.332121]
[1644703541379,0.0004225,41968.0,41965.0,0.332121]
[1644703541780,0.00093043,41975.0,41965.0,0.332121]
[1644703541979,0.00093043,41975.0,41964.0,0.0417]
[1644703542235,0.21262121,41974.0,41964.0,0.0417]
[1644703544231,0.21262121,41974.0,41962.0,0.1]
[1644703544431,0.21262121,41974.0,41962.0,0.05]
[1644703544632,0.21262121,41974.0,41960.0,0.91134394]
[1644703544834,0.21262121,41974.0,41961.0,0.32417681]
[1644703545232,0.21262121,41974.0,41961.0,0.42417681]
[1644703545431,0.21262121,41974.0,41966.0,0.00250299]
[1644703546172,0.21262121,41974.0,41968.0,0.00042253]
[1644703547172,0.21262121,41974.0,41966.0,0.00250299]
[1644703547375,0.21262121,41974.0,41969.0,0.00042252]
[1644703548175,0.332121,41973.0,41969.0,0.00042252]
[1644703548374,0.00065521,41967.0,41966.0,0.00250299]
[1644703549374,0.00065521,41967.0,41966.0,0.01203599]
[1644703550041,0.00065521,41967.0,41966.0,0.009533]
[1644703550238,0.00065521,41967.0,41966.0,0.05]
[1644703550439,0.00065521,41967.0,41966.0,0.435521]
[1644703550641,0.00065521,41967.0,41966.0,0.485521]
[1644703550839,0.00065521,41967.0,41966.0,0.645088]
[1644703552839,0.00065521,41967.0,41966.0,0.89813006]
[1644703553040,0.00065521,41967.0,41966.0,0.645088]
[1644703553240,0.00065521,41967.0,41966.0,0.65462]